[Event "Late-Titled-Tuesday-Blitz-April-16-2024"]
[Site "Chess.com"]
[Date "2024.04.16"]
[Round "6"]
[White "GothamChess"]
[Black "SpeedofLight0"]
[Result "1-0"]
[WhiteElo "2698"]
[BlackElo "3035"]
[TimeControl "180+1"]
[EndTime "15:04:30 PDT"]
[Termination "GothamChess won by checkmate"]

1. e4 {[%clk 0:03:00.9]} 1... Nc6 {[%clk 0:02:58.6]} 2. Nc3 {[%clk 0:03:00.6]}
2... Nf6 {[%clk 0:02:57.9]} 3. f4 {[%clk 0:03:00.6]} 3... d5 {[%clk 0:02:57.7]}
4. e5 {[%clk 0:03:00.3]} 4... Ne4 {[%clk 0:02:58]} 5. Nf3 {[%clk 0:02:57.6]}
5... Bf5 {[%clk 0:02:56.6]} 6. Ne2 {[%clk 0:02:51]} 6... e6 {[%clk 0:02:54.1]}
7. d3 {[%clk 0:02:48.9]} 7... Nc5 {[%clk 0:02:53.4]} 8. Ng3 {[%clk 0:02:47]}
8... Bg4 {[%clk 0:02:47.7]} 9. Be3 {[%clk 0:02:40.8]} 9... d4 {[%clk 0:02:45.3]}
10. Bf2 {[%clk 0:02:38.3]} 10... Qd5 {[%clk 0:02:45.6]} 11. Be2 {[%clk
0:02:37.5]} 11... h5 {[%clk 0:02:42.9]} 12. h3 {[%clk 0:02:35.5]} 12... h4
{[%clk 0:01:44.3]} 13. hxg4 {[%clk 0:02:17]} 13... hxg3 {[%clk 0:01:44.4]} 14.
Rxh8 {[%clk 0:02:17.5]} 14... gxf2+ {[%clk 0:01:44.8]} 15. Kxf2 {[%clk
0:02:17.6]} 15... f6 {[%clk 0:01:45.3]} 16. exf6 {[%clk 0:01:54.6]} 16... gxf6
{[%clk 0:01:46.2]} 17. a3 {[%clk 0:01:47]} 17... O-O-O {[%clk 0:01:41.1]} 18.
Qh1 {[%clk 0:01:45.1]} 18... Qd6 {[%clk 0:01:30.2]} 19. g3 {[%clk 0:01:40.3]}
19... Ne7 {[%clk 0:01:30.5]} 20. Qh5 {[%clk 0:01:32.8]} 20... Nd5 {[%clk
0:01:29.7]} 21. Qf7 {[%clk 0:01:26.2]} 21... Ne3 {[%clk 0:01:25.7]} 22. g5
{[%clk 0:01:23]} 22... e5 {[%clk 0:01:18.9]} 23. g6 {[%clk 0:01:10.1]} 23...
exf4 {[%clk 0:01:16]} 24. g7 {[%clk 0:01:07.8]} 24... fxg3+ {[%clk 0:01:15.4]}
25. Kg1 {[%clk 0:01:06.3]} 25... Bxg7 {[%clk 0:01:15.3]} 26. Qxg7 {[%clk
0:01:05.6]} 26... g2 {[%clk 0:00:52.2]} 27. Rxd8+ {[%clk 0:01:02.3]} 27... Qxd8
{[%clk 0:00:51.7]} 28. c3 {[%clk 0:00:49.2]} 28... Ne6 {[%clk 0:00:41.1]} 29.
Qg3 {[%clk 0:00:42.5]} 29... c5 {[%clk 0:00:39.5]} 30. cxd4 {[%clk 0:00:41]}
30... cxd4 {[%clk 0:00:40.4]} 31. Rc1+ {[%clk 0:00:40.1]} 31... Kd7 {[%clk
0:00:39.6]} 32. Nxd4 {[%clk 0:00:32.3]} 32... Nxd4 {[%clk 0:00:37.8]} 33. Qxe3
{[%clk 0:00:30.7]} 33... Qb6 {[%clk 0:00:38.5]} 34. Kxg2 {[%clk 0:00:24.6]}
34... Qxb2 {[%clk 0:00:36.9]} 35. Re1 {[%clk 0:00:23]} 35... Nc6 {[%clk
0:00:29.6]} 36. Kg1 {[%clk 0:00:20.6]} 36... Qxa3 {[%clk 0:00:27.4]} 37. Bg4+
{[%clk 0:00:20.2]} 37... Kc7 {[%clk 0:00:25.1]} 38. Qf4+ {[%clk 0:00:19.7]}
38... Qd6 {[%clk 0:00:19.1]} 39. Qxd6+ {[%clk 0:00:19.1]} 39... Kxd6 {[%clk
0:00:18.9]} 40. Re6+ {[%clk 0:00:18.7]} 40... Kc5 {[%clk 0:00:19.1]} 41. Rxf6
{[%clk 0:00:18.4]} 41... b5 {[%clk 0:00:16.2]} 42. Kf2 {[%clk 0:00:13.6]} 42...
a5 {[%clk 0:00:15.1]} 43. Ke3 {[%clk 0:00:13.5]} 43... Nd4 {[%clk 0:00:15.6]}
44. Rf8 {[%clk 0:00:11.5]} 44... Nc6 {[%clk 0:00:04.8]} 45. d4+ {[%clk
0:00:11.5]} 45... Kd6 {[%clk 0:00:03]} 46. Rf6+ {[%clk 0:00:11.3]} 46... Kc7
{[%clk 0:00:03.5]} 47. Bf3 {[%clk 0:00:10.6]} 47... Nb4 {[%clk 0:00:02.6]} 48.
d5 {[%clk 0:00:09.3]} 48... a4 {[%clk 0:00:03]} 49. Be4 {[%clk 0:00:04.3]} 49...
a3 {[%clk 0:00:03]} 50. Rf1 {[%clk 0:00:04.6]} 50... Kd6 {[%clk 0:00:02.8]} 51.
Kd4 {[%clk 0:00:04.8]} 51... Na6 {[%clk 0:00:02.9]} 52. Kc3 {[%clk 0:00:04.5]}
52... Kc5 {[%clk 0:00:01.9]} 53. Kb3 {[%clk 0:00:03.9]} 53... b4 {[%clk
0:00:02.2]} 54. Rc1+ {[%clk 0:00:04.2]} 54... Kd4 {[%clk 0:00:02.7]} 55. Rc4+
{[%clk 0:00:03.8]} 55... Ke5 {[%clk 0:00:03.3]} 56. Rc6 {[%clk 0:00:02.6]} 56...
Nb8 {[%clk 0:00:03.2]} 57. Re6+ {[%clk 0:00:02.8]} 57... Kd4 {[%clk 0:00:03.2]}
58. d6 {[%clk 0:00:03.4]} 58... Nd7 {[%clk 0:00:03.8]} 59. Re7 {[%clk
0:00:02.2]} 59... Nc5+ {[%clk 0:00:04.4]} 60. Ka2 {[%clk 0:00:02.5]} 60... Kc3
{[%clk 0:00:04.5]} 61. d7 {[%clk 0:00:02.4]} 61... b3+ {[%clk 0:00:02.3]} 62.
Kxa3 {[%clk 0:00:02.9]} 62... Nxd7 {[%clk 0:00:01.7]} 63. Rxd7 {[%clk
0:00:03.1]} 63... b2 {[%clk 0:00:02.6]} 64. Rc7+ {[%clk 0:00:03.7]} 64... Kd2
{[%clk 0:00:03.5]} 65. Kxb2 {[%clk 0:00:04.1]} 65... Ke3 {[%clk 0:00:04.2]} 66.
Kb3 {[%clk 0:00:05]} 66... Kxe4 {[%clk 0:00:05]} 67. Kb4 {[%clk 0:00:05.9]}
67... Kd5 {[%clk 0:00:04.7]} 68. Kb5 {[%clk 0:00:06.8]} 68... Ke6 {[%clk
0:00:05.6]} 69. Kb6 {[%clk 0:00:07.7]} 69... Kd6 {[%clk 0:00:05.9]} 70. Rc5
{[%clk 0:00:08.3]} 70... Ke6 {[%clk 0:00:06.8]} 71. Kc6 {[%clk 0:00:08.7]} 71...
Ke7 {[%clk 0:00:07.4]} 72. Rd5 {[%clk 0:00:09.2]} 72... Ke8 {[%clk 0:00:08.3]}
73. Rd7 {[%clk 0:00:09]} 73... Kf8 {[%clk 0:00:08.8]} 74. Kd6 {[%clk 0:00:09.9]}
74... Ke8 {[%clk 0:00:09.4]} 75. Ke6 {[%clk 0:00:10.7]} 75... Kf8 {[%clk
0:00:10.3]} 76. Kf6 {[%clk 0:00:11.1]} 76... Ke8 {[%clk 0:00:11.2]} 77. Rd6
{[%clk 0:00:11.6]} 77... Kf8 {[%clk 0:00:11.6]} 78. Rd8# {[%clk 0:00:12.5]} 1-0

[Event "Late-Titled-Tuesday-Blitz-April-16-2024"]
[Site "Chess.com"]
[Date "2024.04.16"]
[Round "6"]
[White "cthulhuuu"]
[Black "balachess2006"]
[Result "0-1"]
[WhiteElo "2451"]
[BlackElo "2680"]
[TimeControl "180+1"]
[EndTime "15:04:44 PDT"]
[Termination "balachess2006 won by resignation"]

1. e4 {[%clk 0:02:59.6]} 1... c5 {[%clk 0:02:58]} 2. Nf3 {[%clk 0:02:59.4]} 2...
Nc6 {[%clk 0:02:58.7]} 3. g3 {[%clk 0:02:59.5]} 3... g6 {[%clk 0:02:58.3]} 4.
Bg2 {[%clk 0:02:59.8]} 4... Bg7 {[%clk 0:02:58.9]} 5. O-O {[%clk 0:03:00.5]}
5... e5 {[%clk 0:02:59.5]} 6. d3 {[%clk 0:03:00.8]} 6... Nge7 {[%clk 0:03:00]}
7. Nc3 {[%clk 0:03:01.5]} 7... O-O {[%clk 0:03:00.1]} 8. Nd2 {[%clk 0:03:02.2]}
8... d6 {[%clk 0:02:59.7]} 9. Nc4 {[%clk 0:03:02.9]} 9... Be6 {[%clk 0:02:59.4]}
10. Nd5 {[%clk 0:03:03.5]} 10... Bxd5 {[%clk 0:02:57.6]} 11. exd5 {[%clk
0:03:04.4]} 11... Na5 {[%clk 0:02:58.2]} 12. Ne3 {[%clk 0:02:59.9]} 12... f5
{[%clk 0:02:56.7]} 13. f4 {[%clk 0:02:58.2]} 13... exf4 {[%clk 0:02:56.6]} 14.
gxf4 {[%clk 0:02:58.5]} 14... b5 {[%clk 0:02:56.1]} 15. Bd2 {[%clk 0:02:49.4]}
15... Re8 {[%clk 0:02:55.3]} 16. c3 {[%clk 0:02:40.7]} 16... Kh8 {[%clk
0:02:47.3]} 17. Qf3 {[%clk 0:02:39.1]} 17... Ng8 {[%clk 0:02:46.4]} 18. Rae1
{[%clk 0:02:27.8]} 18... Nf6 {[%clk 0:02:46.1]} 19. Re2 {[%clk 0:02:10.7]} 19...
Nb7 {[%clk 0:02:40.2]} 20. Rfe1 {[%clk 0:02:10]} 20... Qd7 {[%clk 0:02:37.8]}
21. Qg3 {[%clk 0:01:58.9]} 21... Nd8 {[%clk 0:02:32.9]} 22. Qh4 {[%clk
0:01:53.8]} 22... Nf7 {[%clk 0:02:28]} 23. a3 {[%clk 0:01:33.5]} 23... Nh5
{[%clk 0:02:06.6]} 24. Bh3 {[%clk 0:01:33.2]} 24... Bf6 {[%clk 0:02:05.6]} 25.
Qf2 {[%clk 0:01:31.7]} 25... Ng7 {[%clk 0:02:03.4]} 26. Ng2 {[%clk 0:01:14.6]}
26... Rxe2 {[%clk 0:02:00.5]} 27. Rxe2 {[%clk 0:01:15.5]} 27... Re8 {[%clk
0:01:59.9]} 28. Ne1 {[%clk 0:01:14.9]} 28... Rxe2 {[%clk 0:01:57.5]} 29. Qxe2
{[%clk 0:01:15.8]} 29... Qe8 {[%clk 0:01:53.1]} 30. Bf1 {[%clk 0:00:58.7]} 30...
Qxe2 {[%clk 0:01:46.1]} 31. Bxe2 {[%clk 0:00:59.6]} 31... Ne8 {[%clk 0:01:43.6]}
32. b4 {[%clk 0:00:56.1]} 32... cxb4 {[%clk 0:01:40.4]} 33. axb4 {[%clk
0:00:57]} 33... Nc7 {[%clk 0:01:34.7]} 34. c4 {[%clk 0:00:57.2]} 34... a6 {[%clk
0:01:34.8]} 35. Nc2 {[%clk 0:00:55.5]} 35... Kg7 {[%clk 0:01:33.8]} 36. Be3
{[%clk 0:00:55.5]} 36... Kf8 {[%clk 0:01:27.1]} 37. Bb6 {[%clk 0:00:55.1]} 37...
Na8 {[%clk 0:01:26.1]} 38. Ba5 {[%clk 0:00:52.4]} 38... Nd8 {[%clk 0:00:51.4]}
39. cxb5 {[%clk 0:00:32.1]} 39... axb5 {[%clk 0:00:51.6]} 40. d4 {[%clk
0:00:32.7]} 40... Nb7 {[%clk 0:00:45.4]} 41. Bxb5 {[%clk 0:00:33.1]} 41... Nxa5
{[%clk 0:00:42.3]} 42. bxa5 {[%clk 0:00:34]} 42... Nc7 {[%clk 0:00:43.2]} 43.
Bc6 {[%clk 0:00:33.5]} 43... Ke7 {[%clk 0:00:41.5]} 44. Kf2 {[%clk 0:00:33.8]}
44... Kd8 {[%clk 0:00:40.6]} 45. Ke3 {[%clk 0:00:34]} 45... Kc8 {[%clk
0:00:40.8]} 46. Nb4 {[%clk 0:00:34]} 46... Kb8 {[%clk 0:00:39.7]} 47. Kd3 {[%clk
0:00:23.7]} 47... h6 {[%clk 0:00:34.2]} 48. Bd7 {[%clk 0:00:19.3]} 48... Kb7
{[%clk 0:00:31.4]} 49. Kc4 {[%clk 0:00:11.4]} 49... Bh4 {[%clk 0:00:25.5]} 50.
Be6 {[%clk 0:00:10.5]} 50... Be1 {[%clk 0:00:22.8]} 51. Nd3 {[%clk 0:00:08.8]}
51... Bxa5 {[%clk 0:00:20.3]} 52. Bf7 {[%clk 0:00:08.8]} 52... g5 {[%clk
0:00:20.8]} 53. Bg6 {[%clk 0:00:07]} 53... Bd2 {[%clk 0:00:16.2]} 54. fxg5
{[%clk 0:00:04.9]} 54... Bxg5 {[%clk 0:00:17.1]} 55. Bxf5 {[%clk 0:00:04.7]}
55... Na8 {[%clk 0:00:18]} 56. Bd7 {[%clk 0:00:04.6]} 56... Nb6+ {[%clk
0:00:18.9]} 57. Kb5 {[%clk 0:00:03]} 57... Nxd7 {[%clk 0:00:19.2]} 58. Kc4
{[%clk 0:00:03.6]} 58... Nb6+ {[%clk 0:00:19.5]} 59. Kc3 {[%clk 0:00:02.8]}
59... Nxd5+ {[%clk 0:00:19.9]} 60. Kc2 {[%clk 0:00:03.7]} 60... Kc6 {[%clk
0:00:20]} 61. Kd1 {[%clk 0:00:04.2]} 61... Nc3+ {[%clk 0:00:19.7]} 62. Ke1
{[%clk 0:00:03.3]} 62... Kd5 {[%clk 0:00:19.5]} 63. Kf2 {[%clk 0:00:02.7]} 63...
Kxd4 {[%clk 0:00:19.9]} 64. Ne1 {[%clk 0:00:03.2]} 64... Ne4+ {[%clk 0:00:20.3]}
65. Kf3 {[%clk 0:00:03.4]} 65... Nd2+ {[%clk 0:00:20.6]} 66. Kg4 {[%clk
0:00:03.6]} 66... Ke4 {[%clk 0:00:20]} 67. h4 {[%clk 0:00:03.9]} 67... Be3
{[%clk 0:00:20.5]} 68. Ng2 {[%clk 0:00:04.1]} 68... d5 {[%clk 0:00:20.3]} 69.
Nxe3 {[%clk 0:00:04]} 69... Kxe3 {[%clk 0:00:21.2]} 70. Kh5 {[%clk 0:00:03.6]}
70... Nf3 {[%clk 0:00:21.7]} 71. Kxh6 {[%clk 0:00:04.1]} 71... Nxh4 {[%clk
0:00:22.2]} 0-1

[Event "Late-Titled-Tuesday-Blitz-April-16-2024"]
[Site "Chess.com"]
[Date "2024.04.16"]
[Round "6"]
[White "kleber2007"]
[Black "JoakimVonAnd"]
[Result "1/2-1/2"]
[WhiteElo "2533"]
[BlackElo "2685"]
[TimeControl "180+1"]
[EndTime "15:04:56 PDT"]
[Termination "Game drawn by repetition"]

1. Nf3 {[%clk 0:03:00.9]} 1... Nf6 {[%clk 0:02:54.2]} 2. g3 {[%clk 0:03:00.8]}
2... b5 {[%clk 0:02:54.1]} 3. c3 {[%clk 0:02:54.7]} 3... Bb7 {[%clk 0:02:52.7]}
4. Bg2 {[%clk 0:02:54.2]} 4... e6 {[%clk 0:02:51.7]} 5. Qb3 {[%clk 0:02:53.9]}
5... a6 {[%clk 0:02:49]} 6. a4 {[%clk 0:02:53.6]} 6... Bd5 {[%clk 0:02:48.9]} 7.
Qc2 {[%clk 0:02:53]} 7... Be7 {[%clk 0:02:44.5]} 8. d3 {[%clk 0:02:52.8]} 8...
O-O {[%clk 0:02:43.9]} 9. e4 {[%clk 0:02:50.5]} 9... Bb7 {[%clk 0:02:43.3]} 10.
O-O {[%clk 0:02:50.1]} 10... c5 {[%clk 0:02:43.4]} 11. axb5 {[%clk 0:02:47.7]}
11... axb5 {[%clk 0:02:43.4]} 12. Rxa8 {[%clk 0:02:48.4]} 12... Bxa8 {[%clk
0:02:44.3]} 13. Na3 {[%clk 0:02:48.1]} 13... Qb6 {[%clk 0:02:41.6]} 14. Qb3
{[%clk 0:02:47.8]} 14... b4 {[%clk 0:02:34.4]} 15. Nc4 {[%clk 0:02:46.9]} 15...
Qa6 {[%clk 0:02:33]} 16. Bg5 {[%clk 0:02:35]} 16... d5 {[%clk 0:02:29.7]} 17.
exd5 {[%clk 0:02:30.7]} 17... Bxd5 {[%clk 0:02:30.6]} 18. Nfe5 {[%clk
0:02:21.9]} 18... Nc6 {[%clk 0:02:14.2]} 19. Bxf6 {[%clk 0:02:13.1]} 19... Bxf6
{[%clk 0:01:59.2]} 20. Nd7 {[%clk 0:02:10.4]} 20... Rd8 {[%clk 0:01:53.9]} 21.
Nxf6+ {[%clk 0:02:08.9]} 21... gxf6 {[%clk 0:01:53.5]} 22. Bxd5 {[%clk 0:02:02]}
22... Rxd5 {[%clk 0:01:54.4]} 23. Rd1 {[%clk 0:01:48.2]} 23... Kg7 {[%clk
0:01:18]} 24. Qc2 {[%clk 0:01:45.1]} 24... Qa2 {[%clk 0:01:03.7]} 25. Ne3 {[%clk
0:01:40.1]} 25... Re5 {[%clk 0:00:36.3]} 26. d4 {[%clk 0:01:32.8]} 26... Rh5
{[%clk 0:00:14.2]} 27. Qe2 {[%clk 0:01:11.5]} 27... cxd4 {[%clk 0:00:13.7]} 28.
Qxh5 {[%clk 0:01:05.3]} 28... dxe3 {[%clk 0:00:13.7]} 29. Qg4+ {[%clk
0:01:02.8]} 29... Kf8 {[%clk 0:00:13.4]} 30. Qf3 {[%clk 0:00:52.7]} 30... exf2+
{[%clk 0:00:12.4]} 31. Qxf2 {[%clk 0:00:52.2]} 31... Ne5 {[%clk 0:00:04.5]} 32.
cxb4 {[%clk 0:00:45.8]} 32... Kg7 {[%clk 0:00:03.3]} 33. h3 {[%clk 0:00:38.5]}
33... Qc4 {[%clk 0:00:03.6]} 34. Qf4 {[%clk 0:00:31.3]} 34... Qe2 {[%clk
0:00:02.9]} 35. Rf1 {[%clk 0:00:30]} 35... Qxb2 {[%clk 0:00:02.6]} 36. Qxf6+
{[%clk 0:00:29.3]} 36... Kg8 {[%clk 0:00:03.2]} 37. Qd8+ {[%clk 0:00:28]} 37...
Kg7 {[%clk 0:00:03.8]} 38. Qf6+ {[%clk 0:00:28.4]} 38... Kg8 {[%clk 0:00:04.1]}
39. Qg5+ {[%clk 0:00:25.9]} 39... Kf8 {[%clk 0:00:04.3]} 40. Qh6+ {[%clk
0:00:23.4]} 40... Ke8 {[%clk 0:00:04.6]} 41. Qxh7 {[%clk 0:00:23.1]} 41... Qd4+
{[%clk 0:00:04.9]} 42. Kg2 {[%clk 0:00:21.5]} 42... Qd5+ {[%clk 0:00:04.4]} 43.
Kg1 {[%clk 0:00:21]} 43... Qd4+ {[%clk 0:00:04.5]} 44. Rf2 {[%clk 0:00:20.8]}
44... Qd1+ {[%clk 0:00:04.8]} 45. Kg2 {[%clk 0:00:20.7]} 45... Qd5+ {[%clk
0:00:05.5]} 46. Kg1 {[%clk 0:00:19.7]} 46... Qd1+ {[%clk 0:00:05.4]} 47. Kh2
{[%clk 0:00:18.8]} 47... Nf3+ {[%clk 0:00:05.9]} 48. Rxf3 {[%clk 0:00:17.3]}
48... Qe2+ {[%clk 0:00:05.4]} 49. Kg1 {[%clk 0:00:15.1]} 49... Qxf3 {[%clk
0:00:05.9]} 50. Qh8+ {[%clk 0:00:15.4]} 50... Ke7 {[%clk 0:00:05.7]} 51. Qd4
{[%clk 0:00:16]} 51... Qxg3+ {[%clk 0:00:05.5]} 52. Kf1 {[%clk 0:00:16.4]} 52...
Qxh3+ {[%clk 0:00:05.9]} 53. Ke2 {[%clk 0:00:16.7]} 53... Qh5+ {[%clk
0:00:05.4]} 54. Kd2 {[%clk 0:00:16.5]} 54... Qb5 {[%clk 0:00:05.4]} 55. Kc3
{[%clk 0:00:15.9]} 55... f5 {[%clk 0:00:05.5]} 56. Qg7+ {[%clk 0:00:15.6]} 56...
Kd6 {[%clk 0:00:06]} 57. Qg8 {[%clk 0:00:15.9]} 57... f4 {[%clk 0:00:04.8]} 58.
Qf8+ {[%clk 0:00:15.8]} 58... Ke5 {[%clk 0:00:05.1]} 59. Qg7+ {[%clk 0:00:16.1]}
59... Ke4 {[%clk 0:00:05.5]} 60. Qg2+ {[%clk 0:00:12.8]} 60... Kf5 {[%clk
0:00:05.1]} 61. Qh3+ {[%clk 0:00:12.3]} 61... Ke4 {[%clk 0:00:05.1]} 62. Qg2+
{[%clk 0:00:12.3]} 62... f3 {[%clk 0:00:05.7]} 63. Qg4+ {[%clk 0:00:12.3]} 63...
Ke3 {[%clk 0:00:06.3]} 64. Qg1+ {[%clk 0:00:08.8]} 64... f2 {[%clk 0:00:06.9]}
65. Qg3+ {[%clk 0:00:09.2]} 65... Ke2 {[%clk 0:00:07.4]} 66. Qg4+ {[%clk
0:00:08.8]} 66... Kf1 {[%clk 0:00:05.3]} 67. Qh3+ {[%clk 0:00:08.8]} 67... Ke1
{[%clk 0:00:04.9]} 68. Qe3+ {[%clk 0:00:07.2]} 68... Qe2 {[%clk 0:00:04.2]} 69.
Qc1+ {[%clk 0:00:07.4]} 69... Qd1 {[%clk 0:00:04.3]} 70. Qe3+ {[%clk 0:00:08]}
70... Kf1 {[%clk 0:00:04.9]} 71. Qh3+ {[%clk 0:00:08.2]} 71... Kg1 {[%clk
0:00:03.7]} 72. Qg3+ {[%clk 0:00:08.4]} 72... Kf1 {[%clk 0:00:04.3]} 73. Qh3+
{[%clk 0:00:08.6]} 73... Ke2 {[%clk 0:00:04.9]} 74. Qg4+ {[%clk 0:00:08.7]}
74... Ke1 {[%clk 0:00:05]} 75. Qe4+ {[%clk 0:00:07.9]} 75... Kf1 {[%clk
0:00:04.7]} 76. Qh1+ {[%clk 0:00:07.2]} 76... Ke2 {[%clk 0:00:05.3]} 77. Qe4+
{[%clk 0:00:07.8]} 77... Kf1 {[%clk 0:00:04.5]} 78. Qh1+ {[%clk 0:00:07.9]}
78... Ke2 {[%clk 0:00:04.4]} 79. Qe4+ {[%clk 0:00:07.9]} 79... Kf1 {[%clk
0:00:04.6]} 1/2-1/2

[Event "Late-Titled-Tuesday-Blitz-April-16-2024"]
[Site "Chess.com"]
[Date "2024.04.16"]
[Round "6"]
[White "wild3000"]
[Black "ChessSwole"]
[Result "1/2-1/2"]
[WhiteElo "2505"]
[BlackElo "2673"]
[TimeControl "180+1"]
[EndTime "15:05:12 PDT"]
[Termination "Game drawn - insufficient material"]

1. d3 {[%clk 0:02:32.9]} 1... g6 {[%clk 0:02:56.9]} 2. g3 {[%clk 0:02:33]} 2...
Bg7 {[%clk 0:02:57]} 3. Bg2 {[%clk 0:02:33.9]} 3... c5 {[%clk 0:02:57.5]} 4. f4
{[%clk 0:02:33.8]} 4... d6 {[%clk 0:02:56.1]} 5. Nf3 {[%clk 0:02:33.7]} 5... Nc6
{[%clk 0:02:56.5]} 6. O-O {[%clk 0:02:33.3]} 6... e6 {[%clk 0:02:57]} 7. e4
{[%clk 0:02:33.2]} 7... Nge7 {[%clk 0:02:57.2]} 8. Nc3 {[%clk 0:02:33.1]} 8...
O-O {[%clk 0:02:57.3]} 9. Rb1 {[%clk 0:02:31.7]} 9... Rb8 {[%clk 0:02:56.9]} 10.
a4 {[%clk 0:02:31.5]} 10... a6 {[%clk 0:02:56.9]} 11. Be3 {[%clk 0:02:28]} 11...
b5 {[%clk 0:02:56.4]} 12. axb5 {[%clk 0:02:28.9]} 12... axb5 {[%clk 0:02:57.3]}
13. Ne2 {[%clk 0:02:24.5]} 13... b4 {[%clk 0:02:50.9]} 14. Qd2 {[%clk
0:02:20.5]} 14... Bb7 {[%clk 0:02:34.5]} 15. g4 {[%clk 0:02:19.6]} 15... f5
{[%clk 0:02:33.9]} 16. Ng5 {[%clk 0:02:18.3]} 16... Qd7 {[%clk 0:02:33.9]} 17.
exf5 {[%clk 0:02:13.6]} 17... gxf5 {[%clk 0:02:33]} 18. gxf5 {[%clk 0:01:51.6]}
18... Nxf5 {[%clk 0:02:33.9]} 19. Bf2 {[%clk 0:01:51.6]} 19... Rbe8 {[%clk
0:02:21]} 20. Ng3 {[%clk 0:01:47.9]} 20... Ncd4 {[%clk 0:02:13.5]} 21. N3e4
{[%clk 0:01:33.5]} 21... h6 {[%clk 0:02:05.2]} 22. Nh3 {[%clk 0:01:29]} 22...
Kh8 {[%clk 0:01:32.7]} 23. c3 {[%clk 0:01:27.6]} 23... Nc6 {[%clk 0:01:28.9]}
24. Qe2 {[%clk 0:01:15.9]} 24... Qf7 {[%clk 0:01:27]} 25. Kh1 {[%clk 0:01:10.2]}
25... Rg8 {[%clk 0:01:23.7]} 26. Bf3 {[%clk 0:01:08.5]} 26... Qe7 {[%clk
0:01:14.6]} 27. Rg1 {[%clk 0:01:05.7]} 27... Ref8 {[%clk 0:01:04]} 28. Rg6
{[%clk 0:01:02.3]} 28... Nd8 {[%clk 0:00:52.8]} 29. Rbg1 {[%clk 0:00:57.6]}
29... bxc3 {[%clk 0:00:51.1]} 30. bxc3 {[%clk 0:00:57.4]} 30... Nh4 {[%clk
0:00:44.5]} 31. Bxh4 {[%clk 0:00:35.4]} 31... Qxh4 {[%clk 0:00:45.4]} 32. R6g3
{[%clk 0:00:30.4]} 32... Nf7 {[%clk 0:00:25.8]} 33. c4 {[%clk 0:00:19.1]} 33...
Bd4 {[%clk 0:00:20.6]} 34. Rxg8+ {[%clk 0:00:18.3]} 34... Rxg8 {[%clk
0:00:21.5]} 35. Rxg8+ {[%clk 0:00:18]} 35... Kxg8 {[%clk 0:00:22.4]} 36. Qg2+
{[%clk 0:00:16.2]} 36... Kf8 {[%clk 0:00:21.9]} 37. Qg3 {[%clk 0:00:15.4]} 37...
Qxg3 {[%clk 0:00:19]} 38. hxg3 {[%clk 0:00:15.6]} 38... Ke7 {[%clk 0:00:18.5]}
39. Kg2 {[%clk 0:00:15.8]} 39... Bc8 {[%clk 0:00:17.2]} 40. Nhf2 {[%clk
0:00:15.8]} 40... Bd7 {[%clk 0:00:15.8]} 41. Bh5 {[%clk 0:00:15.1]} 41... Nd8
{[%clk 0:00:13.9]} 42. Bf3 {[%clk 0:00:14.4]} 42... Be8 {[%clk 0:00:12.2]} 43.
Ng4 {[%clk 0:00:14.4]} 43... Nc6 {[%clk 0:00:12.6]} 44. Nxh6 {[%clk 0:00:14.4]}
44... Nb4 {[%clk 0:00:12.5]} 45. Be2 {[%clk 0:00:14.2]} 45... Ba4 {[%clk
0:00:11.8]} 46. Ng8+ {[%clk 0:00:13.2]} 46... Kf7 {[%clk 0:00:11.2]} 47. Nh6+
{[%clk 0:00:13]} 47... Ke7 {[%clk 0:00:11.5]} 48. Ng8+ {[%clk 0:00:13]} 48...
Kf8 {[%clk 0:00:11.9]} 49. Nh6 {[%clk 0:00:13.2]} 49... Bc2 {[%clk 0:00:12.4]}
50. Nxd6 {[%clk 0:00:12.5]} 50... Nxd3 {[%clk 0:00:11.7]} 51. Ng4 {[%clk
0:00:12]} 51... Ke7 {[%clk 0:00:10.5]} 52. Nb5 {[%clk 0:00:11.1]} 52... Bg7
{[%clk 0:00:09.2]} 53. Ne3 {[%clk 0:00:10.2]} 53... Bb1 {[%clk 0:00:07.8]} 54.
Na3 {[%clk 0:00:10.3]} 54... Nc1 {[%clk 0:00:08.2]} 55. Nxb1 {[%clk 0:00:09.3]}
55... Nxe2 {[%clk 0:00:08.8]} 56. Kf2 {[%clk 0:00:07.5]} 56... Nd4 {[%clk
0:00:08.9]} 57. Nd2 {[%clk 0:00:07]} 57... Kd7 {[%clk 0:00:08.2]} 58. Ne4 {[%clk
0:00:07.1]} 58... Kc6 {[%clk 0:00:08.9]} 59. g4 {[%clk 0:00:06.9]} 59... Bf8
{[%clk 0:00:08.4]} 60. f5 {[%clk 0:00:06.9]} 60... exf5 {[%clk 0:00:08.7]} 61.
Nxf5 {[%clk 0:00:07.2]} 61... Ne6 {[%clk 0:00:07.9]} 62. Kf3 {[%clk 0:00:06.6]}
62... Kd7 {[%clk 0:00:07.8]} 63. g5 {[%clk 0:00:05.9]} 63... Nd4+ {[%clk
0:00:06.7]} 64. Kg4 {[%clk 0:00:05.7]} 64... Nc6 {[%clk 0:00:05]} 65. g6 {[%clk
0:00:05.5]} 65... Ne5+ {[%clk 0:00:05.5]} 66. Kg5 {[%clk 0:00:04.9]} 66... Nxc4
{[%clk 0:00:06.1]} 67. Nxc5+ {[%clk 0:00:03.4]} 67... Ke8 {[%clk 0:00:03.6]} 68.
Ne6 {[%clk 0:00:03.3]} 68... Ne5 {[%clk 0:00:03.8]} 69. Nxf8 {[%clk 0:00:02.7]}
69... Kxf8 {[%clk 0:00:03.7]} 70. g7+ {[%clk 0:00:02.7]} 70... Kg8 {[%clk
0:00:04]} 71. Kf6 {[%clk 0:00:02.9]} 71... Ng4+ {[%clk 0:00:04.5]} 72. Kg6
{[%clk 0:00:02.9]} 72... Ne5+ {[%clk 0:00:04.8]} 73. Kh6 {[%clk 0:00:03.1]}
73... Nf7+ {[%clk 0:00:04.6]} 74. Kg6 {[%clk 0:00:03]} 74... Ne5+ {[%clk
0:00:05.1]} 75. Kg5 {[%clk 0:00:03.6]} 75... Kf7 {[%clk 0:00:04.6]} 76. Kh6
{[%clk 0:00:03.9]} 76... Ng4+ {[%clk 0:00:04.5]} 77. Kh7 {[%clk 0:00:04]} 77...
Nf6+ {[%clk 0:00:05.1]} 78. Kh8 {[%clk 0:00:04.1]} 78... Ke6 {[%clk 0:00:03.9]}
79. Nh6 {[%clk 0:00:03.6]} 79... Ke5 {[%clk 0:00:03.4]} 80. Ng8 {[%clk
0:00:03.2]} 80... Ne8 {[%clk 0:00:03.2]} 81. Kh7 {[%clk 0:00:03.3]} 81... Nxg7
{[%clk 0:00:03.6]} 1/2-1/2